Workbook

Sheet Sheet1
A1: 互联网+大赛各院系参赛名额分配表
A2: 序号 | B2: 院系 | C2: 本科人数 | D2: 研究生人数 | E2: 总人数 | F2: 参与数额(7%)
A3: 1 | B3: 英语学院 | C3: 2776 | D3: 578 | E3: =C3+D3 -> 3354 | F3: =E3*7% -> 235
A4: 2 | B4: 国际关系学院 | C4: 348 | D4: 34 | E4: =C4+D4 -> 382 | F4: =E4*7% -> 27
A5: 3 | B5: 翻译学院 | C5: 396 | D5: 433 | E5: 829 | F5: =E5*7% -> 58
A6: 4 | B6: 国际工商管理学院 | C6: 1319 | D6: 0 | E6: 1319 | F6: 92
A7: 5 | B7: 商务英语学院 | C7: 1526 | D7: 45 | E7: 1571 | F7: 110
A8: 6 | B8: 法语学院 | C8: 434 | D8: 57 | E8: 491 | F8: 34
A9: 7 | B9: 德语学院 | C9: 392 | D9: 94 | E9: 486 | F9: 34
A10: 8 | B10: 日语学院 | C10: 424 | D10: 90 | E10: 514 | F10: 36
A11: 9 | B11: 俄语学院 | C11: 327 | D11: 84 | E11: 411 | F11: 29
A12: 10 | B12: 国际教育学院 | C12: 499 | D12: 106 | E12: 605 | F12: 42
A13: 11 | B13: 东方语言文化学院 | C13: 729 | D13: 86 | E13: 815 | F13: 57
A14: 12 | B14: 中国语言文化学院 | C14: 957 | D14: 229 | E14: 1186 | F14: 83
A15: 13 | B15: 新闻传播学院 | C15: 1130 | D15: 148 | E15: 1278 | F15: 89
A16: 14 | B16: 国际法学与社会学院 | C16: 772 | D16: 50 | E16: 822 | F16: 58
A17: 15 | B17: 国际金融与贸易学院 | C17: 699 | D17: 82 | E17: 781 | F17: 55
A18: 16 | B18: 西方语言文化学院 | C18: 632 | D18: 25 | E18: 657 | F18: 46
A19: 17 | B19: 马克思主义学院 | C19: 0 | D19: 50 | E19: 50 | F19: =E19*7% -> 4
A20: 合计 | C20: =SUM(C3:C19) -> 13360 | D20: =SUM(D3:D19) -> 2191 | E20: =SUM(E3:E19) -> 15551 | F20: =E20*7% -> 1089
